Cogmind - Beta 14 @@@ ROGUE MODE // 2025.05.04 @ 14:59:57 Player: Zaros426 Result: Destroyed by as-92474 with Assembled Rifle Performance ------------- Evolutions (0) 0 Regions Visited (2) 400 Robots Destroyed (32) 160 Value Destroyed (657) 657 Prototype IDs (2) 40 Alien Tech Used (0) 0 Bonus (0) 0 TOTAL SCORE: 1257 Bonus ------- None Cogmind --------- Core Integrity 0/250 Matter 171/300 Energy 76/100 System Corruption 5% Temperature Cool (0) Movement Treading (160) Location -10/Mines Parts ------- > --- POWER (1) -------- (None) > --- PROPULSION (2) --- Light Treads Light Treads > --- UTILITY (2) ------ Small Storage Unit Seismic Detector > --- WEAPON (2) ------- EM Pulse Gun Grenade Launcher > --- INVENTORY (8) ---- Compact Wheel High-capacity Matter Pod (200) Improved Terrain Scanner Mining Laser Peak State ------------ > --- POWER ------------ Light Ion Engine > --- PROPULSION ------- Light Treads Light Treads > --- UTILITY ---------- Small Storage Unit Seismic Detector > --- WEAPON ----------- EM Pulse Gun EM Pulse Gun > --- INVENTORY -------- Compact Wheel Improved Heat Sink Improved Terrain Scanner Assault Rifle Assault Rifle Light Assault Rifle Mining Laser [Rating: 8] Favorites ----------- Power Light Ion Engine Engine Light Ion Engine Propulsion Light Treads Treads Light Treads Wheel Compact Wheel Utility Small Storage Unit Device Seismic Detector Storage Small Storage Unit Weapon EM Pulse Gun Energy Gun EM Pulse Gun Ballistic Gun Assault Rifle Launcher Grenade Launcher Build | -11 -10 -10 ------- Run | Yrd Mat Min Slots Evolved . | . . . Power . | . . . Propulsion . | . . . Utility . | . . . Weapon . | . . . Parts Attached 23 | 7 11 5 Power 2 | 1 1 . Engine 2 | 1 1 . Core . | . . . Reactor . | . . . Propulsion 11 | 2 6 3 Treads 8 | 2 4 2 Leg . | . . . Wheel 3 | . 2 1 Hover . | . . . Flight . | . . . Utility 3 | 2 1 . Device 2 | 1 1 . Storage 1 | 1 . . Processor . | . . . Hackware . | . . . Protection . | . . . Artifact . | . . . Weapon 7 | 2 3 2 Energy Gun 3 | 1 1 1 Energy Cannon . | . . . Ballistic Gun 3 | 1 2 . Ballistic Cannon . | . . . Launcher 1 | . . 1 Special Weapon . | . . . Impact Weapon . | . . . Slashing Weapon . | . . . Piercing Weapon . | . . . Special Melee Weapon . | . . . Unidentified Prototypes . | . . . Parts Lost 5 | . 1 4 Power 1 | . . 1 Propulsion 1 | . . 1 Utility . | . . . Weapon 3 | . 1 2 Highest Loss Streak 4 | . 1 4 To Critical Strikes . | . . . Average Slot Usage (%) 98 | . 98 89 Engine 13 | . 13 8 Treads 23 | . 23 24 Wheel 4 | . 4 4 Device 14 | . 14 14 Storage 14 | . 14 14 Energy Gun 16 | . 17 . Ballistic Gun 10 | . 9 22 Peak Build Rating 8 | 7 8 7 Average Rating 7 | 5 7 6 On Entrance 4 | . 7 7 Naked Turns . | . . . Heaviest Build 13 | 13 13 13 Greatest Support 40 | 40 40 40 Greatest Overweight (x) . | . . . Average Overweight (x) . | . . . Largest Inventory Capacity 8 | 8 8 8 Average Capacity 7 | 7 8 8 Most Carried 8 | 3 8 7 Average Carried 6 | 1 6 6 Final Capacity 8 | 8 8 8 Final Carried 7 | 3 7 4 Class Distribution -------------------- 100% | Mutant Dominant Class ---------------- Mutant | -10/Materials Mutant | -10/Mines Resources | -11 -10 -10 ----------- Run | Yrd Mat Min Matter Collected 686 | 294 392 . Remotely . | . . . Salvage Created 1023 | 127 871 25 Parts 67 | 14 52 1 Haulers Intercepted 2 | . 2 . Recyclers Shooed 1 | . 1 . Parts Field Recycled . | . . . Retrieved Matter . | . . . Parts Self-Destructed . | . . . Prevented . | . . . Kills | -11 -10 -10 ------- Run | Yrd Mat Min Combat Hostiles Destroyed 22 | . 17 5 Guns 16 | . 15 1 AOE 5 | . 1 4 Classes Destroyed 10 | 2 6 2 Worker 1 | . 1 . Tunneler 3 | 3 . . Hauler 2 | . 2 . Recycler 3 | 1 2 . Operator 2 | . 2 . Watcher 3 | . 3 . Swarmer 6 | . 6 . Grunt 11 | . 11 . Demolisher 1 | . . 1 Assembled 4 | . . 4 Best Kill Streak 4 | 2 4 4 Combat Bots Only 4 | . 3 4 Max Kills in Single Turn 2 | 1 2 2 Gunslinging 1 | . 1 . Exploded 2 | . 1 2 Melee . | . . . Uniques/NPCs Destroyed . | . . . Combat | -11 -10 -10 -------- Run | Yrd Mat Min Hostile Shots Fired 80 | . 57 23 Missed 14 | . 10 4 Damage Taken 1246 | . 473 773 Core 251 | . 21 230 Absorbed by Shields . | . . . Regen/Repaired (Parts) 144 | . 144 . Core Remaining (%) 100 | 100 . . Volleys Fired 78 | 8 59 11 Largest 2 | 2 2 2 Hottest 80 | 60 80 40 Shots Fired 147 | 16 112 19 Gun 144 | 16 112 16 Cannon . | . . . Launcher 3 | . . 3 Special . | . . . Kinetic 60 | 8 36 16 Thermal . | . . . Explosive 3 | . . 3 Electromagnetic 84 | 8 76 . Robot Hit Streak 7 | 4 7 3 Robot Miss Streak 4 | 2 4 3 Penetration Max . | . . . Secondary Targets 3 | . 2 1 Max Gunslinging Chain 1 | . 1 1 Shots Hit Robots 81 | 9 64 8 Core Hits 52 | 4 38 10 Critical Kills . | . . . Critical Parts Destroyed . | . . . Critical Strikes 1 | . 1 . Corrupt 1 | . 1 . Melee Attacks . | . . . Impact . | . . . Slashing . | . . . Piercing . | . . . Sneak Attacks . | . . . Combat Hostiles . | . . . Follow-up Attacks . | . . . Damage Inflicted 1542 | 113 1149 280 Guns 1127 | 113 905 109 Cannons . | . . . Explosions 415 | . 244 171 Melee . | . . . Ramming . | . . . Kinetic 411 | 49 253 109 Thermal 244 | . 244 . Explosive 171 | . . 171 Electromagnetic 716 | 64 652 . Impact . | . . . Slashing . | . . . Piercing . | . . . Highest Corruption 5 | . . 5 Average Corruption 5 | . . 5 Corruption Purged . | . . . Corruption Blocked . | . . . Overload Shots . | . . . Overflow Damage 10 | . . 10 Projectiles . | . . . Explosions 10 | . . 10 Melee . | . . . Knockbacks . | . . . Impact . | . . . Kinetic . | . . . Secondary . | . . . Self-Inflicted Damage . | . . . Shots . | . . . Rammed . | . . . Targets Rammed . | . . . Kicked . | . . . Crushed . | . . . Highest Temperature 174 | . 174 . Average Temperature 46 | . 46 . Received Heat Transfer 195 | . 195 . Siege Activations . | . . . Robots Corrupted 1 | . 1 . Combat Hostiles 1 | . 1 . Parts Fried 3 | . 3 . Impact Corruptions . | . . . Robots Melted . | . . . Combat Hostiles . | . . . Parts Melted 1 | . 1 . Heat Transferred 400 | . 400 . Parts Sabotaged . | . . . Parts Stolen . | . . . Parts Stripped . | . . . Power Chain Reactions 4 | . 4 . Alert | -11 -10 -10 ------- Run | Yrd Mat Min Peak Influence 318 | 20 318 117 Initial 87 | . 13 87 Average 145 | 9 163 93 Maximum Alert Level 1 | . 1 . Low Security (%) 73 | 100 69 100 Level 1 26 | . 30 . Level 2 . | . . . Level 3 . | . . . Level 4 . | . . . Level 5 . | . . . High Security . | . . . Max Security . | . . . Squads Dispatched 3 | . 3 . Investigation 2 | . 2 . Extermination . | . . . Reinforcement 1 | . 1 . Assault . | . . . Garrison . | . . . Intercept . | . . . Searches Triggered . | . . . Construction Impeded . | . . . Haulers Reinforced . | . . . Active Scanning Responses . | . . . Cargo Convoy Interrupts . | . . . Stealth | -11 -10 -10 --------- Run | Yrd Mat Min Distress Signals 1 | . 1 . Communications Jammed . | . . . Distress Signals . | . . . Times Spotted 30 | . 22 8 Peak Tracking Total 8 | . 4 8 Tactical Retreats 4 | . 4 . Traps | -11 -10 -10 ------- Run | Yrd Mat Min Traps Triggered . | . . . Indirectly . | . . . Trap Hack Attempts . | . . . Triggered . | . . . Disarmed . | . . . Reprogrammed . | . . . Reused . | . . . Traps Extracted . | . . . Installed . | . . . Triggered . | . . . Machines | -11 -10 -10 ---------- Run | Yrd Mat Min Machines Disabled 2 | . 2 . Max in Single Turn 1 | . 1 . Machines Repaired . | . . . Machines Dismantled . | . . . Machines Sabotaged . | . . . Overloaded Fab Kills . | . . . Hacking | -11 -10 -10 --------- Run | Yrd Mat Min Machines Accessed 9 | . 9 . Terminals 6 | . 6 . Fabricators . | . . . Repair Stations 1 | . 1 . Recycling Units 2 | . 2 . Scanalyzers . | . . . Garrison Access . | . . . Total Hacks 39 | . 39 . Successful 23 | . 23 . Failed 16 | . 16 . Catastrophic 1 | . 1 . Database Lockouts . | . . . Manual 27 | . 27 . Terminals 27 | . 27 . Fabricators . | . . . Repair Stations 9 | . 9 . Recycling Units 3 | . 3 . Scanalyzers . | . . . Garrison Access . | . . . Terminal Hacks 6 | . 6 . Robot Analysis 3 | . 3 . Prototype ID Bank 1 | . 1 . Terminal Index 1 | . 1 . Locate Traps 1 | . 1 . Fabricator Hacks . | . . . Repair Station Hacks 7 | . 7 . Scan Component 4 | . 4 . Repair 3 | . 3 . Recycling Unit Hacks . | . . . Scanalyzer . | . . . Garrison Access Hacks . | . . . Unauthorized Hacks 9 | . 9 . Terminals 7 | . 7 . Botnet 1 | . 1 . Operators 1 | . 1 . Skim 5 | . 5 . Fabricators . | . . . Repair Stations . | . . . Recycling Units 2 | . 2 . Tunnel 2 | . 2 . Scanalyzers . | . . . Garrison Access . | . . . Data Cores Recovered 1 | . 1 . Used 1 | . 1 . Hacking Detections 7 | . 7 . Full Trace Events . | . . . Feedback Events . | . . . Feedback Blocked . | . . . Robot Schematics Acquired . | . . . Robots Built . | . . . Authchips . | . . . Time . | . . . Total Robot Build Rating . | . . . Part Schematics Acquired . | . . . Parts Built . | . . . Authchips . | . . . Time . | . . . Total Part Build Rating . | . . . Parts Repaired 3 | . 3 . Time 88 | . 88 . Parts Recycled . | . . . Recycled Matter . | . . . Retrieved Matter . | . . . Retrieved Components . | . . . Parts Scanalyzed . | . . . Part Schematics Acquired . | . . . Parts Damaged . | . . . Bothacking | -11 -10 -10 ------------ Run | Yrd Mat Min Used RIF Installer . | . . . Robots Hacked . | . . . Non-combat . | . . . Combat . | . . . Robot Hacks Applied . | . . . Relay Couplers Released . | . . . Fabnet Peak Effective % . | . . . Robots Rewired . | . . . Allies Hacked . | . . . Hacks Repelled . | . . . Allies | -11 -10 -10 -------- Run | Yrd Mat Min Total Allies . | . . . Largest Group . | . . . Highest-Rated Group . | . . . Highest-Rated Ally . | . . . Total Orders . | . . . Ally Attacks . | . . . Total Damage . | . . . Kills . | . . . Allies Corrupted . | . . . Allies Melted . | . . . Intel | -11 -10 -10 ------- Run | Yrd Mat Min Robot Analysis Total 3 | . 3 . Derelict Logs Recovered . | . . . Drone Launches . | . . . Drone Recoveries . | . . . Exploration | -11 -10 -10 ------------- Run | Yrd Mat Min Turns Passed 1503 | 142 1289 72 Spaces Moved 772 | 68 679 25 Core 3 | 3 . . Treads 446 | 65 361 20 Legs . | . . . Wheels 323 | . 318 5 Hover . | . . . Flight . | . . . Fastest Speed 50 | 50 100 100 Average Speed 134 | 155 131 148 Slowest Speed 160 | 160 160 160 Overloaded Moves . | . . . Propulsion Burnouts . | . . . Robots Hopped . | . . . Cave-ins Triggered 1 | . . 1 Exploration Rate (%) 39 | 5 98 14 Regions Visited 2 Branch Regions 1 Pre-discovered Areas 2 | . 2 . Known Exits Taken 1 | . 1 . Unknown Exits Taken 1 | 1 . . Scrap Searched . | . . . Spaces Dug . | . . . Terrain Destroyed 19 | . 9 10 Melee . | . . . Projectile . | . . . AOE 19 | . 9 10 Terrain Rammed . | . . . Walls Destroyed . | . . . Machines Disabled . | . . . Actions | -11 -10 -10 --------- Run | Yrd Mat Min Total 1089 | 86 962 41 Wait 194 | . 194 . Move 770 | 67 678 25 Hop . | . . . Pick Up 16 | 4 12 . Fast Attach 8 | 6 2 . Attach 5 | 1 1 3 Detach . | . . . Swap 10 | . 8 2 Drop 8 | . 8 . Fire 78 | 8 59 11 Melee . | . . . Ram . | . . . Kick . | . . . Crush . | . . . Escape Stasis . | . . . Rewire . | . . . Trap . | . . . Miscellaneous . | . . . Route ------- -11/Scrapyard -10/Materials (discovered 6 exits: *Mat x3 / *Min x2 / Sub) -10/Mines (discovered 2 exits: Mat x2) History --------- Turn | Location | Event 22 | -11/Scrapyard | Discovered new exit (range 16) 143 | -11/Scrapyard | Entered Materials 306 | -10/Materials | Build established: Mutant 388 | -10/Materials | Discovered new exit (range 15) 704 | -10/Materials | Loaded intel: 2 recycling unit locations 775 | -10/Materials | Learned location of 1 exit from Storage 779 | -10/Materials | Discovered new exit (range 16) 835 | -10/Materials | Learned location of 2 exits from Subcaves 849 | -10/Materials | Discovered new exit (range 10) 885 | -10/Materials | Identified exit to Materials 926 | -10/Materials | Learned location of 2 exits from Subcaves 975 | -10/Materials | Learned Storage garrison access intel 1036 | -10/Materials | Identified exit to Subcaves 1036 | -10/Materials | Identified exit to Mines 1294 | -10/Materials | Repaired EM Pulse Gun 1331 | -10/Materials | Repaired Broken Lgt. Treads 1358 | -10/Materials | Repaired Lgt. Ion Engine 1432 | -10/Materials | Entered Mines 1433 | -10/Mines | Assembled infested the area 1438 | -10/Mines | Assisted by a Guerilla fighting off Assembled 1482 | -10/Mines | Core integrity fell below 50% 1492 | -10/Mines | Crushed by falling debris 1492 | -10/Mines | Core integrity fell below 20% 1504 | -10/Mines | Destroyed by as-92474 with Assembled Rifle Last Messages --------------- 01483_ K-01 Serf collects debris. 01484_ Destroyed Shock Absorption System. 01485_ The unstable cave ceiling collapses. 01487_ K-01 Serf collects debris. 01489_ Assault Rifle destroyed. 01490_ The unstable cave ceiling collapses. 01492_ Crushed by falling debris. 01492_ Assault Rifle destroyed. 01492_ System corrupted by crushing effect (+2). 01492_ Lgt. Treads destroyed. 01492_ System corrupted by crushing effect (+3). 01494_ The unstable cave ceiling collapses. 01496_ K-01 Serf destroyed. 01498_ as-71537 destroyed. 01498_ Destroyed Asb. Hover Unit. 01500_ Destroyed Asb. F-torch. 01500_ as-78498 destroyed. 01500_ as-63594 destroyed. 01501_ The unstable cave ceiling collapses. 01503_ as-20423 destroyed. Map ----- +----------------------------------------------------+ | ?????????????????????????????????????????????????? | | ?????????????????????????????????????????????????? | | ?????????????????????????????????????????????????? | | ?????????????????????????????????????????????????? | | ?????????????????????????????????????????????????? | | ?????????????????????????????????????????????????? | | ?????????????????????????????????????????????????? | | ?????????????????????????????????????????????????? | | ?????????????????????????????????????????????????? | | ?????????????????????????????????????????????????? | | ???????????????????????? #?????????????????????? | | ???????????????????????? # ??????????????????? | | ???????????????????????? a ?????????????????? | | ???????????????????????# a% ?????????????????? | | ???????????????????????# % ######????????????? | | ???????????????????????# % # ##???????????? | | ??????????????????????? #???????????? | | ??????????????????????? #???????????? | | ??????????????????????? #????????????? | | ??????????????????????## % " #?????????????? | | ????????????????????### #?????????????? | | ???????????????????## # #?????????????? | | ??????????????????## # #??????????????? | | ?????????????# $## ##??????????????? | | ????????????# t # ##?????????????? | | ????????????# r @ # # #?????????????? | | ?????????????# ### #?????????????? | | ?????????????## ????????### # ##?????????????? | | ????????????????????????# # # #?????????????? | | ????????????????????????# # #?????????????? | | ????????????????????????## ###### #???????? | | ?????????????????????????## #???????? | | ??????????????????????????###### #????????? | | ???????????????????????????????# #######????????? | | ??????????????????????????????## #??????????????? | | ?????????????????????????????## ##?????????????? | | ???????????